[Event "Titled Tuesday Blitz October 11 Early 2022"]
[White "Goryachkina, Aleksandra"]
[Black "Villamayor, Buenaventura"]
[WhiteFideId "4147103"]
[BlackFideId "5200393"]
[WhiteElo "2484"]
[BlackElo "2301"]
[Result "1-0"]
[Round "07"]
[TimeControl "180+1"]
[Date "2022.10.12"]
[WhiteClock "0:00:13"]
[BlackClock "0:00:03"]

1. e4 {[%clk 0:03:00]}  c5 {[%clk 0:02:51]} 2. Nf3 {[%clk 0:03:00]}  Nc6 {[%clk 0:02:52]} 3. Bb5 {[%clk 0:02:59]}  g6 {[%clk 0:02:52]} 4. O-O {[%clk 0:02:55]}  Bg7 {[%clk 0:02:50]} 5. Re1 {[%clk 0:02:55]}  e5 {[%clk 0:02:46]} 6. b4 {[%clk 0:02:54]}  cxb4 {[%clk 0:02:42]} 7. a3 {[%clk 0:02:46]}  Nge7 {[%clk 0:02:38]} 8. axb4 {[%clk 0:02:44]}  O-O {[%clk 0:02:37]} 9. Bb2 {[%clk 0:02:42]}  a6 {[%clk 0:02:33]} 10. Bxc6 {[%clk 0:02:41]}  Nxc6 {[%clk 0:02:29]} 11. b5 {[%clk 0:02:38]}  Nd4 {[%clk 0:02:23]} 12. Nxd4 {[%clk 0:02:38]}  exd4 {[%clk 0:02:24]} 13. bxa6 {[%clk 0:02:17]}  bxa6 {[%clk 0:02:22]} 14. Na3 {[%clk 0:02:16]}  Bb7 {[%clk 0:02:10]} 15. d3 {[%clk 0:02:12]}  Qg5 {[%clk 0:01:47]} 16. Nc4 {[%clk 0:02:09]}  d5 {[%clk 0:01:43]} 17. Na5 {[%clk 0:02:03]}  Bc8 {[%clk 0:01:38]} 18. Qf3 {[%clk 0:01:34]}  Bg4 {[%clk 0:01:31]} 19. Qg3 {[%clk 0:01:34]}  Be5 {[%clk 0:01:28]} 20. Bc1 {[%clk 0:01:30]}  Qh5 {[%clk 0:01:11]} 21. Bf4 {[%clk 0:01:29]}  Bf6 {[%clk 0:00:53]} 22. h3 {[%clk 0:01:25]}  Be6 {[%clk 0:00:52]} 23. e5 {[%clk 0:01:17]}  Bd8 {[%clk 0:00:37]} 24. Nc6 {[%clk 0:01:14]}  Rc8 {[%clk 0:00:32]} 25. Nxd8 {[%clk 0:01:11]}  Rfxd8 {[%clk 0:00:33]} 26. Bg5 {[%clk 0:01:10]}  Re8 {[%clk 0:00:30]} 27. Ra2 {[%clk 0:01:05]}  h6 {[%clk 0:00:25]} 28. Bf6 {[%clk 0:01:02]}  Qf5 {[%clk 0:00:20]} 29. Qh4 {[%clk 0:01:01]}  h5 {[%clk 0:00:19]} 30. Qxd4 {[%clk 0:01:01]}  Bd7 {[%clk 0:00:18]} 31. Re3 {[%clk 0:00:41]}  Rb8 {[%clk 0:00:16]} 32. Rf3 {[%clk 0:00:38]}  Qe6 {[%clk 0:00:15]} 33. Ra1 {[%clk 0:00:25]}  Kh7 {[%clk 0:00:13]} 34. c3 {[%clk 0:00:23]}  Bb5 {[%clk 0:00:11]} 35. Qf4 {[%clk 0:00:21]}  Rb7 {[%clk 0:00:10]} 36. Rg3 {[%clk 0:00:19]}  Rc8 {[%clk 0:00:09]} 37. Qd2 {[%clk 0:00:16]}  Rbc7 {[%clk 0:00:07]} 38. Rc1 {[%clk 0:00:16]}  d4 {[%clk 0:00:05]} 39. c4 {[%clk 0:00:16]}  Bc6 {[%clk 0:00:05]} 40. Rg5 {[%clk 0:00:15]}  Ba8 {[%clk 0:00:05]} 41. Qe2 {[%clk 0:00:15]}  Kg8 {[%clk 0:00:03]} 42. Qxh5 {[%clk 0:00:13]} 1-0


[Site "https://www.chess.com"]

[Event "Titled Tuesday Blitz October 11 Early 2022"]
[White "Grot, Blazej"]
[Black "Kuchava, Ana"]
[WhiteFideId "21835845"]
[BlackFideId "13605348"]
[WhiteElo "1739"]
[BlackElo "2001"]
[Result "1-0"]
[Round "07"]
[TimeControl "180+1"]
[Date "2022.10.12"]
[WhiteClock "0:01:43"]
[BlackClock "0:00:01"]

1. e4 {[%clk 0:03:00]}  c5 {[%clk 0:02:58]} 2. Nf3 {[%clk 0:03:00]}  d6 {[%clk 0:02:57]} 3. Bb5+ {[%clk 0:02:51]}  Bd7 {[%clk 0:02:54]} 4. Bxd7+ {[%clk 0:02:51]}  Qxd7 {[%clk 0:02:53]} 5. O-O {[%clk 0:02:52]}  Nc6 {[%clk 0:02:52]} 6. c3 {[%clk 0:02:52]}  Nf6 {[%clk 0:02:35]} 7. Re1 {[%clk 0:02:52]}  e6 {[%clk 0:02:11]} 8. d4 {[%clk 0:02:52]}  cxd4 {[%clk 0:02:11]} 9. cxd4 {[%clk 0:02:53]}  d5 {[%clk 0:02:12]} 10. e5 {[%clk 0:02:53]}  Ne4 {[%clk 0:02:12]} 11. Nbd2 {[%clk 0:02:52]}  Nxd2 {[%clk 0:02:08]} 12. Bxd2 {[%clk 0:02:53]}  Be7 {[%clk 0:02:07]} 13. Rc1 {[%clk 0:02:53]}  O-O {[%clk 0:02:07]} 14. Rc3 {[%clk 0:02:54]}  Rac8 {[%clk 0:02:00]} 15. a3 {[%clk 0:02:54]}  b5 {[%clk 0:01:46]} 16. Rd3 {[%clk 0:02:50]}  a5 {[%clk 0:01:30]} 17. h4 {[%clk 0:02:49]}  b4 {[%clk 0:01:23]} 18. Nh2 {[%clk 0:02:48]}  f5 {[%clk 0:01:19]} 19. exf6 {[%clk 0:02:46]}  Bxf6 {[%clk 0:01:19]} 20. Nf3 {[%clk 0:02:41]}  bxa3 {[%clk 0:01:14]} 21. bxa3 {[%clk 0:02:40]}  Qd6 {[%clk 0:01:05]} 22. Bg5 {[%clk 0:02:28]}  Kh8 {[%clk 0:00:59]} 23. Bxf6 {[%clk 0:02:26]}  gxf6 {[%clk 0:00:59]} 24. Rde3 {[%clk 0:02:23]}  Rfe8 {[%clk 0:00:59]} 25. Qe2 {[%clk 0:02:17]}  Nd8 {[%clk 0:00:51]} 26. Nh2 {[%clk 0:02:15]}  Rg8 {[%clk 0:00:48]} 27. Qf3 {[%clk 0:02:14]}  f5 {[%clk 0:00:40]} 28. Nf1 {[%clk 0:02:11]}  a4 {[%clk 0:00:35]} 29. Ng3 {[%clk 0:02:10]}  f4 {[%clk 0:00:34]} 30. Nh5 {[%clk 0:02:00]}  Qe7 {[%clk 0:00:24]} 31. Qxf4 {[%clk 0:01:54]}  Rc2 {[%clk 0:00:18]} 32. Qe5+ {[%clk 0:01:52]}  Rg7 {[%clk 0:00:16]} 33. Rg3 {[%clk 0:01:52]}  Rc7 {[%clk 0:00:06]} 34. Nxg7 {[%clk 0:01:50]}  Nc6 {[%clk 0:00:01]} 35. Qxe6 {[%clk 0:01:43]}  Qxe6 {[%clk 0:00:01]} 36. Nxe6 {[%clk 0:01:43]} 1-0


[Site "https://www.chess.com"]

[Event "Titled Tuesday Blitz October 11 Early 2022"]
[White "Gubanov, Oleg"]
[Black "Vlassov, Nikolai"]
[WhiteFideId "14115115"]
[BlackFideId "4103360"]
[WhiteElo "2158"]
[BlackElo "2324"]
[Result "0-1"]
[Round "07"]
[TimeControl "180+1"]
[Date "2022.10.12"]
[WhiteClock "0:00:18"]
[BlackClock "0:01:30"]

1. d4 {[%clk 0:03:00]}  Nf6 {[%clk 0:02:59]} 2. c4 {[%clk 0:03:01]}  Nc6 {[%clk 0:02:59]} 3. Nf3 {[%clk 0:02:55]}  e6 {[%clk 0:02:59]} 4. Nc3 {[%clk 0:02:48]}  Bb4 {[%clk 0:02:58]} 5. e3 {[%clk 0:02:46]}  Bxc3+ {[%clk 0:02:58]} 6. bxc3 {[%clk 0:02:46]}  O-O {[%clk 0:02:58]} 7. Bd3 {[%clk 0:02:46]}  b6 {[%clk 0:02:58]} 8. e4 {[%clk 0:02:41]}  Ne8 {[%clk 0:02:53]} 9. e5 {[%clk 0:02:40]}  f5 {[%clk 0:02:52]} 10. exf6 {[%clk 0:02:38]}  Nxf6 {[%clk 0:02:51]} 11. O-O {[%clk 0:02:36]}  Ba6 {[%clk 0:02:51]} 12. Qe2 {[%clk 0:02:35]}  Na5 {[%clk 0:02:46]} 13. Bg5 {[%clk 0:02:31]}  Rc8 {[%clk 0:02:44]} 14. Ne5 {[%clk 0:02:26]}  Qe8 {[%clk 0:02:36]} 15. c5 {[%clk 0:02:12]}  Bxd3 {[%clk 0:02:34]} 16. Nxd3 {[%clk 0:02:12]}  Qh5 {[%clk 0:02:26]} 17. Qxh5 {[%clk 0:01:53]}  Nxh5 {[%clk 0:02:27]} 18. Be3 {[%clk 0:01:52]}  Nc4 {[%clk 0:02:25]} 19. a4 {[%clk 0:01:49]}  Nf6 {[%clk 0:02:24]} 20. Rab1 {[%clk 0:01:13]}  Nd5 {[%clk 0:02:22]} 21. cxb6 {[%clk 0:01:08]}  axb6 {[%clk 0:02:20]} 22. Rfc1 {[%clk 0:01:04]}  Ndxe3 {[%clk 0:02:15]} 23. fxe3 {[%clk 0:01:04]}  Nxe3 {[%clk 0:02:16]} 24. a5 {[%clk 0:01:04]}  bxa5 {[%clk 0:02:15]} 25. Rb7 {[%clk 0:01:04]}  Nd5 {[%clk 0:02:02]} 26. c4 {[%clk 0:00:55]}  Nf4 {[%clk 0:02:02]} 27. Nxf4 {[%clk 0:00:47]}  Rxf4 {[%clk 0:02:01]} 28. d5 {[%clk 0:00:48]}  exd5 {[%clk 0:01:51]} 29. cxd5 {[%clk 0:00:49]}  Rd4 {[%clk 0:01:51]} 30. Rb5 {[%clk 0:00:25]}  a4 {[%clk 0:01:49]} 31. Kf2 {[%clk 0:00:24]}  c6 {[%clk 0:01:36]} 32. Ra5 {[%clk 0:00:20]}  Rf8+ {[%clk 0:01:30]} 33. Ke3 {[%clk 0:00:19]}  Rxd5 {[%clk 0:01:31]} 34. Rxd5 {[%clk 0:00:19]}  cxd5 {[%clk 0:01:31]} 35. Ra1 {[%clk 0:00:18]}  Ra8 {[%clk 0:01:30]} 36. Kd4 {[%clk 0:00:18]}  Ra5 {[%clk 0:01:30]} 0-1


[Site "https://www.chess.com"]

[Event "Titled Tuesday Blitz October 11 Early 2022"]
[White "Haitin, Ilja"]
[Black "Aggelis, Nikolaos"]
[WhiteFideId "4501764"]
[BlackFideId "4213220"]
[WhiteElo "2221"]
[BlackElo "2187"]
[Result "1-0"]
[Round "07"]
[TimeControl "180+1"]
[Date "2022.10.12"]
[WhiteClock "0:00:45"]
[BlackClock "0:01:26"]

1. e4 {[%clk 0:03:00]}  c6 {[%clk 0:02:55]} 2. d4 {[%clk 0:02:59]}  g6 {[%clk 0:02:51]} 3. Nc3 {[%clk 0:02:57]}  d5 {[%clk 0:02:51]} 4. e5 {[%clk 0:02:57]}  h5 {[%clk 0:02:49]} 5. f4 {[%clk 0:02:57]}  Nh6 {[%clk 0:02:48]} 6. Nf3 {[%clk 0:02:57]}  Bg4 {[%clk 0:02:45]} 7. Be3 {[%clk 0:02:55]}  Nf5 {[%clk 0:02:44]} 8. Bf2 {[%clk 0:02:55]}  e6 {[%clk 0:02:42]} 9. h3 {[%clk 0:02:53]}  Bxf3 {[%clk 0:02:42]} 10. Qxf3 {[%clk 0:02:54]}  Qb6 {[%clk 0:02:42]} 11. O-O-O {[%clk 0:02:50]}  a6 {[%clk 0:02:42]} 12. g4 {[%clk 0:02:47]}  Ng7 {[%clk 0:02:37]} 13. Bd3 {[%clk 0:02:39]}  c5 {[%clk 0:02:37]} 14. dxc5 {[%clk 0:02:31]}  Qa5 {[%clk 0:02:30]} 15. f5 {[%clk 0:02:29]}  hxg4 {[%clk 0:02:24]} 16. hxg4 {[%clk 0:02:27]}  Rxh1 {[%clk 0:02:24]} 17. Rxh1 {[%clk 0:02:28]}  gxf5 {[%clk 0:02:23]} 18. gxf5 {[%clk 0:02:26]}  Nc6 {[%clk 0:02:17]} 19. f6 {[%clk 0:02:10]}  Nxe5 {[%clk 0:02:12]} 20. fxg7 {[%clk 0:02:08]}  Bxg7 {[%clk 0:02:07]} 21. Qg3 {[%clk 0:02:06]}  Nxd3+ {[%clk 0:02:05]} 22. Qxd3 {[%clk 0:01:59]}  Bxc3 {[%clk 0:02:05]} 23. Qxc3 {[%clk 0:01:47]}  Qxc3 {[%clk 0:02:05]} 24. bxc3 {[%clk 0:01:47]}  O-O-O {[%clk 0:01:44]} 25. Rh7 {[%clk 0:01:45]}  Rf8 {[%clk 0:01:44]} 26. c6 {[%clk 0:01:37]}  bxc6 {[%clk 0:01:42]} 27. Bc5 {[%clk 0:01:37]}  Rd8 {[%clk 0:01:43]} 28. Rxf7 {[%clk 0:01:36]}  Rd7 {[%clk 0:01:43]} 29. Rf6 {[%clk 0:01:18]}  Kc7 {[%clk 0:01:36]} 30. Rxe6 {[%clk 0:01:17]}  Rh7 {[%clk 0:01:37]} 31. Re7+ {[%clk 0:01:12]}  Rxe7 {[%clk 0:01:36]} 32. Bxe7 {[%clk 0:01:13]}  Kb6 {[%clk 0:01:36]} 33. Kb2 {[%clk 0:01:08]}  Kb5 {[%clk 0:01:37]} 34. Kb3 {[%clk 0:01:06]}  c5 {[%clk 0:01:38]} 35. Bf8 {[%clk 0:00:56]}  c4+ {[%clk 0:01:30]} 36. Ka3 {[%clk 0:00:55]}  a5 {[%clk 0:01:30]} 37. Bg7 {[%clk 0:00:50]}  a4 {[%clk 0:01:26]} 38. Bf8 {[%clk 0:00:48]}  Ka5 {[%clk 0:01:26]} 39. Be7 {[%clk 0:00:45]}  Kb5 {[%clk 0:01:26]} 40. Bb4 {[%clk 0:00:45]} 1-0


[Site "https://www.chess.com"]

[Event "Titled Tuesday Blitz October 11 Early 2022"]
[White "Hajiyev, Kanan"]
[Black "Malyi, Viacheslav"]
[WhiteFideId "13404148"]
[BlackFideId "14123983"]
[WhiteElo "2118"]
[BlackElo "2291"]
[Result "1-0"]
[Round "07"]
[TimeControl "180+1"]
[Date "2022.10.12"]
[WhiteClock "0:00:48"]
[BlackClock "0:01:08"]

1. d4 {[%clk 0:02:57]}  d5 {[%clk 0:02:55]} 2. Nf3 {[%clk 0:02:57]}  Nf6 {[%clk 0:02:53]} 3. c4 {[%clk 0:02:57]}  e6 {[%clk 0:02:54]} 4. cxd5 {[%clk 0:02:58]}  exd5 {[%clk 0:02:55]} 5. Nc3 {[%clk 0:02:58]}  Be7 {[%clk 0:02:55]} 6. Bg5 {[%clk 0:02:57]}  c6 {[%clk 0:02:56]} 7. Qc2 {[%clk 0:02:57]}  Nbd7 {[%clk 0:02:54]} 8. e3 {[%clk 0:02:56]}  Nh5 {[%clk 0:02:54]} 9. Bxe7 {[%clk 0:02:56]}  Qxe7 {[%clk 0:02:55]} 10. Be2 {[%clk 0:02:57]}  g6 {[%clk 0:02:54]} 11. O-O {[%clk 0:02:57]}  O-O {[%clk 0:02:55]} 12. Rab1 {[%clk 0:02:56]}  Nhf6 {[%clk 0:02:47]} 13. b4 {[%clk 0:02:55]}  Ne4 {[%clk 0:02:47]} 14. b5 {[%clk 0:02:49]}  Ndf6 {[%clk 0:02:41]} 15. bxc6 {[%clk 0:02:44]}  bxc6 {[%clk 0:02:42]} 16. Ne5 {[%clk 0:02:37]}  Bf5 {[%clk 0:02:37]} 17. Bd3 {[%clk 0:02:20]}  Qd6 {[%clk 0:02:34]} 18. Na4 {[%clk 0:02:09]}  Rfc8 {[%clk 0:02:27]} 19. Rfc1 {[%clk 0:02:07]}  c5 {[%clk 0:02:18]} 20. Nxc5 {[%clk 0:01:27]}  Nxc5 {[%clk 0:01:35]} 21. Bxf5 {[%clk 0:01:27]}  Ncd7 {[%clk 0:01:35]} 22. Qxc8+ {[%clk 0:01:23]}  Rxc8 {[%clk 0:01:33]} 23. Rxc8+ {[%clk 0:01:24]}  Kg7 {[%clk 0:01:34]} 24. Bxd7 {[%clk 0:01:19]}  Nxd7 {[%clk 0:01:31]} 25. Rd8 {[%clk 0:01:20]}  Qa6 {[%clk 0:01:20]} 26. Rxd7 {[%clk 0:01:17]}  Qxa2 {[%clk 0:01:20]} 27. Rxf7+ {[%clk 0:01:16]}  Kh6 {[%clk 0:01:20]} 28. Rfb7 {[%clk 0:01:05]}  a5 {[%clk 0:01:20]} 29. h4 {[%clk 0:01:02]}  a4 {[%clk 0:01:16]} 30. g4 {[%clk 0:00:51]}  Qc2 {[%clk 0:01:08]} 31. Nf7+ {[%clk 0:00:48]}  Kg7 {[%clk 0:01:07]} 32. Ng5+ {[%clk 0:00:49]}  Kf6 {[%clk 0:01:08]} 33. Rf7# {[%clk 0:00:48]} 1-0


[Site "https://www.chess.com"]

[Event "Titled Tuesday Blitz October 11 Early 2022"]
[White "Hanley, Craig A"]
[Black "Ambartsumova, Karina"]
[WhiteFideId "408514"]
[BlackFideId "4166299"]
[WhiteElo "2439"]
[BlackElo "2299"]
[Result "0-1"]
[Round "07"]
[TimeControl "180+1"]
[Date "2022.10.12"]
[WhiteClock "0:00:42"]
[BlackClock "0:00:41"]

1. d4 {[%clk 0:03:00]}  Nf6 {[%clk 0:02:59]} 2. c4 {[%clk 0:02:58]}  g6 {[%clk 0:03:00]} 3. g3 {[%clk 0:02:57]}  Bg7 {[%clk 0:03:00]} 4. Bg2 {[%clk 0:02:55]}  O-O {[%clk 0:03:00]} 5. Nc3 {[%clk 0:02:54]}  d6 {[%clk 0:03:01]} 6. Nf3 {[%clk 0:02:54]}  c6 {[%clk 0:03:01]} 7. O-O {[%clk 0:02:50]}  Bf5 {[%clk 0:03:02]} 8. Nh4 {[%clk 0:02:39]}  Be6 {[%clk 0:03:01]} 9. b3 {[%clk 0:02:32]}  d5 {[%clk 0:03:01]} 10. c5 {[%clk 0:02:31]}  b6 {[%clk 0:02:52]} 11. cxb6 {[%clk 0:02:19]}  axb6 {[%clk 0:02:53]} 12. a4 {[%clk 0:02:19]}  c5 {[%clk 0:02:38]} 13. Ba3 {[%clk 0:02:05]}  Nc6 {[%clk 0:01:56]} 14. e3 {[%clk 0:02:05]}  cxd4 {[%clk 0:01:29]} 15. exd4 {[%clk 0:02:02]}  Ne4 {[%clk 0:01:23]} 16. Nb5 {[%clk 0:01:45]}  Qd7 {[%clk 0:01:01]} 17. Re1 {[%clk 0:01:37]}  Rac8 {[%clk 0:00:57]} 18. f3 {[%clk 0:01:14]}  Nc3 {[%clk 0:00:51]} 19. Qd3 {[%clk 0:00:52]}  Nxb5 {[%clk 0:00:50]} 20. axb5 {[%clk 0:00:52]}  Nxd4 {[%clk 0:00:43]} 21. Rad1 {[%clk 0:00:42]}  Nc2 {[%clk 0:00:41]} 0-1


[Site "https://www.chess.com"]

[Event "Titled Tuesday Blitz October 11 Early 2022"]
[White "Ibarra Jerez, Jose Carlos"]
[Black "Srihari L R"]
[WhiteFideId "2226332"]
[BlackFideId "46617116"]
[WhiteElo "2627"]
[BlackElo "2336"]
[Result "1-0"]
[Round "07"]
[TimeControl "180+1"]
[Date "2022.10.11"]
[WhiteClock "0:00:13"]
[BlackClock "0:00:04"]

1. Nf3 {[%clk 0:03:00]}  c5 {[%clk 0:02:56]} 2. b3 {[%clk 0:02:58]}  Nc6 {[%clk 0:02:54]} 3. Bb2 {[%clk 0:02:57]}  d5 {[%clk 0:02:54]} 4. e3 {[%clk 0:02:57]}  a6 {[%clk 0:02:54]} 5. g3 {[%clk 0:02:56]}  Nf6 {[%clk 0:02:51]} 6. Bg2 {[%clk 0:02:57]}  g6 {[%clk 0:02:51]} 7. O-O {[%clk 0:02:53]}  Bg7 {[%clk 0:02:51]} 8. d4 {[%clk 0:02:52]}  Ne4 {[%clk 0:02:50]} 9. Nbd2 {[%clk 0:02:45]}  cxd4 {[%clk 0:02:33]} 10. Nxe4 {[%clk 0:02:39]}  dxe4 {[%clk 0:02:33]} 11. Nxd4 {[%clk 0:02:39]}  Nxd4 {[%clk 0:02:31]} 12. Bxd4 {[%clk 0:02:38]}  Bxd4 {[%clk 0:02:26]} 13. exd4 {[%clk 0:02:25]}  f5 {[%clk 0:02:20]} 14. f3 {[%clk 0:02:17]}  exf3 {[%clk 0:02:15]} 15. Bxf3 {[%clk 0:02:08]}  O-O {[%clk 0:02:15]} 16. c3 {[%clk 0:01:25]}  Ra7 {[%clk 0:01:54]} 17. Qe2 {[%clk 0:01:22]}  b5 {[%clk 0:01:47]} 18. Qe5 {[%clk 0:01:21]}  Rf6 {[%clk 0:01:29]} 19. Rfe1 {[%clk 0:01:12]}  Qd6 {[%clk 0:01:22]} 20. Rac1 {[%clk 0:01:01]}  Rc7 {[%clk 0:01:16]} 21. c4 {[%clk 0:00:58]}  bxc4 {[%clk 0:01:14]} 22. bxc4 {[%clk 0:00:59]}  Qxe5 {[%clk 0:01:14]} 23. Rxe5 {[%clk 0:00:52]}  h5 {[%clk 0:00:48]} 24. c5 {[%clk 0:00:45]}  f4 {[%clk 0:00:46]} 25. Be4 {[%clk 0:00:35]}  fxg3 {[%clk 0:00:35]} 26. hxg3 {[%clk 0:00:35]}  Kg7 {[%clk 0:00:34]} 27. Rb1 {[%clk 0:00:35]}  Bf5 {[%clk 0:00:24]} 28. Bxf5 {[%clk 0:00:28]}  gxf5 {[%clk 0:00:25]} 29. a4 {[%clk 0:00:22]}  Kf7 {[%clk 0:00:20]} 30. a5 {[%clk 0:00:18]}  Rd7 {[%clk 0:00:17]} 31. d5 {[%clk 0:00:17]}  Rc7 {[%clk 0:00:16]} 32. c6 {[%clk 0:00:17]}  Ke8 {[%clk 0:00:16]} 33. Rb7 {[%clk 0:00:14]}  Kd8 {[%clk 0:00:14]} 34. Rxc7 {[%clk 0:00:15]}  Kxc7 {[%clk 0:00:15]} 35. Rxe7+ {[%clk 0:00:16]}  Kd8 {[%clk 0:00:13]} 36. Rd7+ {[%clk 0:00:14]}  Kc8 {[%clk 0:00:13]} 37. d6 {[%clk 0:00:12]}  Rg6 {[%clk 0:00:05]} 38. Kf2 {[%clk 0:00:12]}  Rf6 {[%clk 0:00:04]} 39. Kf3 {[%clk 0:00:13]}  Rg6 {[%clk 0:00:04]} 40. Kf4 {[%clk 0:00:13]}  Rg4+ {[%clk 0:00:03]} 41. Kxf5 {[%clk 0:00:13]}  Rxg3 {[%clk 0:00:04]} 42. Rh7 {[%clk 0:00:13]} 1-0


[Site "https://www.chess.com"]

[Event "Titled Tuesday Blitz October 11 Early 2022"]
[White "Jobava, Baadur"]
[Black "Moroni, Luca Jr"]
[WhiteFideId "13601520"]
[BlackFideId "865834"]
[WhiteElo "2582"]
[BlackElo "2573"]
[Result "1-0"]
[Round "07"]
[TimeControl "180+1"]
[Date "2022.10.11"]
[WhiteClock "0:00:58"]
[BlackClock "0:01:12"]

1. e4 {[%clk 0:01:57]}  d6 {[%clk 0:03:00]} 2. d4 {[%clk 0:01:57]}  e5 {[%clk 0:01:56]} 3. Nf3 {[%clk 0:01:51]}  exd4 {[%clk 0:01:54]} 4. Nxd4 {[%clk 0:01:51]}  Nf6 {[%clk 0:01:54]} 5. Bd3 {[%clk 0:01:50]}  Be7 {[%clk 0:01:53]} 6. c4 {[%clk 0:01:50]}  O-O {[%clk 0:01:54]} 7. Nc3 {[%clk 0:01:50]}  Re8 {[%clk 0:01:54]} 8. O-O {[%clk 0:01:51]}  Bf8 {[%clk 0:01:55]} 9. f3 {[%clk 0:01:51]}  Nbd7 {[%clk 0:01:53]} 10. Kh1 {[%clk 0:01:50]}  a5 {[%clk 0:01:53]} 11. Be3 {[%clk 0:01:50]}  c6 {[%clk 0:01:54]} 12. Qd2 {[%clk 0:01:50]}  Qc7 {[%clk 0:01:53]} 13. Rac1 {[%clk 0:01:49]}  g6 {[%clk 0:01:53]} 14. Rfd1 {[%clk 0:01:46]}  Bg7 {[%clk 0:01:53]} 15. Bf1 {[%clk 0:01:46]}  Ne5 {[%clk 0:01:51]} 16. b3 {[%clk 0:01:45]}  Bd7 {[%clk 0:01:49]} 17. Qf2 {[%clk 0:01:41]}  b6 {[%clk 0:01:37]} 18. h3 {[%clk 0:01:38]}  Bc8 {[%clk 0:01:31]} 19. g4 {[%clk 0:01:27]}  Bb7 {[%clk 0:01:28]} 20. g5 {[%clk 0:01:28]}  Nfd7 {[%clk 0:01:27]} 21. f4 {[%clk 0:01:25]}  d5 {[%clk 0:01:15]} 22. cxd5 {[%clk 0:01:19]}  cxd5 {[%clk 0:01:12]} 23. Nxd5 {[%clk 0:01:19]}  Nc5 {[%clk 0:01:12]} 24. Nxc7 {[%clk 0:00:58]} 1-0


[Site "https://www.chess.com"]

[Event "Titled Tuesday Blitz October 11 Early 2022"]
[White "Jovic, Stanoje"]
[Black "Sovetbekova, Nurai"]
[WhiteFideId "905020"]
[BlackFideId "13801910"]
[WhiteElo "2238"]
[BlackElo "1925"]
[Result "1-0"]
[Round "07"]
[TimeControl "180+1"]
[Date "2022.10.12"]
[WhiteClock "0:00:47"]
[BlackClock "0:00:04"]

1. c4 {[%clk 0:03:00]}  e5 {[%clk 0:02:58]} 2. g3 {[%clk 0:03:01]}  c6 {[%clk 0:02:56]} 3. d4 {[%clk 0:03:00]}  exd4 {[%clk 0:02:50]} 4. Qxd4 {[%clk 0:02:59]}  Nf6 {[%clk 0:02:48]} 5. Bg2 {[%clk 0:02:59]}  d5 {[%clk 0:02:37]} 6. Nc3 {[%clk 0:02:56]}  Be6 {[%clk 0:02:34]} 7. cxd5 {[%clk 0:02:50]}  cxd5 {[%clk 0:02:32]} 8. Nf3 {[%clk 0:02:41]}  Nc6 {[%clk 0:02:30]} 9. Qa4 {[%clk 0:02:40]}  Bd6 {[%clk 0:02:12]} 10. O-O {[%clk 0:02:38]}  O-O {[%clk 0:02:12]} 11. Rd1 {[%clk 0:02:37]}  a6 {[%clk 0:02:03]} 12. Bg5 {[%clk 0:02:36]}  b5 {[%clk 0:01:59]} 13. Qh4 {[%clk 0:02:31]}  Be7 {[%clk 0:01:59]} 14. e4 {[%clk 0:02:28]}  d4 {[%clk 0:01:20]} 15. e5 {[%clk 0:02:25]}  Nd5 {[%clk 0:01:17]} 16. Nxd5 {[%clk 0:02:15]}  Bxd5 {[%clk 0:01:15]} 17. Bxe7 {[%clk 0:02:11]}  Nxe7 {[%clk 0:00:59]} 18. Nxd4 {[%clk 0:01:55]}  Bxg2 {[%clk 0:00:54]} 19. Kxg2 {[%clk 0:01:55]}  Qd5+ {[%clk 0:00:48]} 20. Nf3 {[%clk 0:01:53]}  Qb7 {[%clk 0:00:36]} 21. Qg4 {[%clk 0:01:41]}  Ng6 {[%clk 0:00:33]} 22. Qf5 {[%clk 0:01:24]}  Rae8 {[%clk 0:00:24]} 23. Rd7 {[%clk 0:01:16]}  Qc6 {[%clk 0:00:17]} 24. Rd6 {[%clk 0:01:14]}  Rxe5 {[%clk 0:00:11]} 25. Qxg6 {[%clk 0:01:02]}  fxg6 {[%clk 0:00:08]} 26. Rxc6 {[%clk 0:01:00]}  Ref5 {[%clk 0:00:08]} 27. Rc3 {[%clk 0:00:55]}  g5 {[%clk 0:00:07]} 28. h3 {[%clk 0:00:53]}  h5 {[%clk 0:00:07]} 29. g4 {[%clk 0:00:53]}  hxg4 {[%clk 0:00:07]} 30. hxg4 {[%clk 0:00:53]}  Rf4 {[%clk 0:00:08]} 31. Kg3 {[%clk 0:00:53]}  Re8 {[%clk 0:00:07]} 32. Nxg5 {[%clk 0:00:50]}  Rd4 {[%clk 0:00:04]} 33. Re1 {[%clk 0:00:47]}  Rxe1 {[%clk 0:00:04]} 34. Rc8+ {[%clk 0:00:47]} 1-0


[Site "https://www.chess.com"]

[Event "Titled Tuesday Blitz October 11 Early 2022"]
[White "Kaidanov, Gregory"]
[Black "Shipov, Sergei"]
[WhiteFideId "2008564"]
[BlackFideId "4113624"]
[WhiteElo "2660"]
[BlackElo "2779"]
[Result "0-1"]
[Round "07"]
[TimeControl "180+1"]
[Date "2022.10.11"]
[WhiteClock "0:00:01"]
[BlackClock "0:01:23"]

1. Nf3 {[%clk 0:03:00]}  d5 {[%clk 0:02:59]} 2. e3 {[%clk 0:02:59]}  Nf6 {[%clk 0:02:59]} 3. c4 {[%clk 0:02:59]}  e6 {[%clk 0:02:56]} 4. d4 {[%clk 0:02:59]}  dxc4 {[%clk 0:02:55]} 5. Bxc4 {[%clk 0:02:58]}  c5 {[%clk 0:02:56]} 6. O-O {[%clk 0:02:57]}  Nc6 {[%clk 0:02:56]} 7. Qe2 {[%clk 0:02:52]}  a6 {[%clk 0:02:56]} 8. Rd1 {[%clk 0:02:51]}  b5 {[%clk 0:02:56]} 9. dxc5 {[%clk 0:02:46]}  Qc7 {[%clk 0:02:55]} 10. Bd3 {[%clk 0:02:46]}  Bxc5 {[%clk 0:02:55]} 11. Nbd2 {[%clk 0:02:42]}  Bb7 {[%clk 0:02:53]} 12. b3 {[%clk 0:02:41]}  Nb4 {[%clk 0:02:43]} 13. Bb1 {[%clk 0:02:40]}  Be7 {[%clk 0:02:41]} 14. Bb2 {[%clk 0:02:38]}  O-O {[%clk 0:02:39]} 15. Rc1 {[%clk 0:02:19]}  Qb8 {[%clk 0:02:29]} 16. a3 {[%clk 0:02:19]}  Nc6 {[%clk 0:02:17]} 17. Ne4 {[%clk 0:02:16]}  Nxe4 {[%clk 0:02:08]} 18. Bxe4 {[%clk 0:02:16]}  Na5 {[%clk 0:02:09]} 19. Be5 {[%clk 0:02:12]}  Qa7 {[%clk 0:02:09]} 20. Bxb7 {[%clk 0:02:10]}  Nxb7 {[%clk 0:02:05]} 21. Rc7 {[%clk 0:02:08]}  Bd8 {[%clk 0:02:02]} 22. Rd7 {[%clk 0:02:07]}  Qb6 {[%clk 0:02:02]} 23. b4 {[%clk 0:02:04]}  f6 {[%clk 0:01:56]} 24. Bb2 {[%clk 0:01:46]}  Nd6 {[%clk 0:01:49]} 25. Rd1 {[%clk 0:01:39]}  Nc4 {[%clk 0:01:48]} 26. Bd4 {[%clk 0:01:39]}  Qc6 {[%clk 0:01:43]} 27. Bc5 {[%clk 0:01:38]}  Re8 {[%clk 0:01:43]} 28. Ng5 {[%clk 0:01:29]}  fxg5 {[%clk 0:01:35]} 29. Qh5 {[%clk 0:01:28]}  Bf6 {[%clk 0:01:35]} 30. Qf7+ {[%clk 0:01:04]}  Kh8 {[%clk 0:01:34]} 31. Rc7 {[%clk 0:00:38]}  Ne5 {[%clk 0:01:23]} 32. Rxc6 {[%clk 0:00:01]}  Nxf7 {[%clk 0:01:23]} 0-1


[Site "https://www.chess.com"]